fUSD/lending_fUSD_20240505
["ID","MTS","AMOUNT","RATE_DAILY","PERIOD"]
[325436032,1714888243369,-691.07,0.00035616,8]
[325436033,1714888243379,-500.0,0.00035616,8]
[325436036,1714888243388,-662.23,0.00035616,8]
[325436039,1714888243398,-500.0,0.00035616,8]
[325436042,1714888243407,-737.94,0.00035616,8]
[325436045,1714888243417,-500.0,0.00035616,8]
[325436049,1714888243435,-1086.86,0.00035616,8]
[325436051,1714888243444,-1067.3,0.00035616,8]
[325436054,1714888243454,-500.0,0.00035616,8]
[325436055,1714888243463,-849.78,0.00035616,8]
[325436056,1714888243472,-553.08,0.00035616,8]
[325436057,1714888243481,-554.28,0.00035616,8]
[325436058,1714888243491,-500.0,0.00035616,8]
[325436059,1714888243500,-500.0,0.00035616,8]
[325436060,1714888243509,-500.0,0.00035616,8]
[325436061,1714888243519,-500.0,0.00035616,8]
[325436062,1714888243528,-887.8,0.00035616,8]
[325436063,1714888243537,-500.0,0.00035616,8]
[325436064,1714888243548,-936.65,0.00035616,8]
[325436065,1714888243557,-784.06,0.00035616,8]
[325436066,1714888243567,-1440.54,0.00035616,8]
[325436067,1714888243576,-500.0,0.00035616,8]
[325436068,1714888243586,-1101.57,0.00035616,8]
[325436069,1714888243595,-593.99,0.00035616,8]
[325436070,1714888243604,-758.69,0.00035616,8]
[325436071,1714888243613,-690.16,0.00035616,8]
[325436072,1714888243623,-644.92,0.00035616,8]
[325436073,1714888243633,-500.0,0.00035616,8]
[325436074,1714888243643,-717.45,0.00035616,8]
[325436075,1714888243652,-500.0,0.00035616,8]
[325436076,1714888243662,-683.4,0.00035616,8]
[325436077,1714888243671,-500.0,0.00035616,8]
[325436078,1714888243681,-1698.68,0.00035616,8]
[325436079,1714888243691,-1235.29,0.00035616,8]
[325436080,1714888243700,-500.0,0.00035616,8]
[325436081,1714888243710,-1690.15,0.00035616,8]
[325436082,1714888243720,-1257.97,0.00035616,8]
[325436083,1714888243730,-500.0,0.00035616,8]
[325436084,1714888243740,-500.0,0.00035616,8]
[325436085,1714888243750,-3107.96,0.00035616,8]
[325436086,1714888243760,-1299.17,0.00035616,8]
[325436087,1714888243769,-500.0,0.00035616,8]
[325436088,1714888243779,-845.42,0.00035616,8]
[325436089,1714888243789,-500.0,0.00035616,8]
[325436090,1714888243799,-500.0,0.00035616,8]
[325436091,1714888243808,-558.66,0.00035616,8]
[325436092,1714888243819,-2575.7,0.00035616,8]
[325436093,1714888243829,-500.0,0.00035616,8]
[325436094,1714888243838,-500.0,0.00035616,8]
[325436095,1714888243848,-1117.32,0.00035616,8]
[325436096,1714888243858,-500.0,0.00035616,8]
[325436097,1714888243868,-1273.41,0.00035616,8]
[325436098,1714888243878,-1966.47,0.00035616,8]
[325436099,1714888243887,-616.72,0.00035616,8]
[325436100,1714888243897,-876.17,0.00035616,8]
[325436101,1714888243906,-795.3,0.00035616,8]
[325436102,1714888243915,-153.71096884,0.00035616,8]
[325436103,1714888243926,-500.0,0.00035616,8]
[325436104,1714888243936,-500.0,0.00035616,8]
[325436105,1714888243947,-500.0,0.00035616,8]
[325436106,1714888243956,-500.0,0.00035616,8]
[325436107,1714888243965,-1232.45,0.00035616,8]
[325436108,1714888243975,-1879.11,0.00035616,8]
[325436109,1714888243986,-500.0,0.00035616,8]
[325436110,1714888243995,-500.0,0.00035616,8]
[325436111,1714888244005,-2002.38,0.00035616,7]
[325436112,1714888244015,-855.12,0.00035616,8]
[325436113,1714888244025,-544.33,0.00035616,8]
[325436114,1714888244036,-500.0,0.00035616,8]
[325436115,1714888244047,-500.0,0.00035616,2]
[325436116,1714888244056,-2552.76,0.00035616,8]
[325436117,1714888244065,-719.41,0.00035616,8]
[325436118,1714888244075,-893.82,0.00035616,8]
[325436119,1714888244084,-1137.25,0.00035616,8]
[325436120,1714888244094,-500.0,0.00035616,8]
[325436121,1714888244105,-1101.2,0.00035616,8]
[325436122,1714888244115,-2176.63,0.00035616,8]
[325436123,1714888244125,-1603.6,0.00035616,8]
[325436124,1714888244135,-2470.14,0.00035616,8]
[325436125,1714888244144,-693.46,0.00035616,8]
[325436126,1714888244154,-500.0,0.00035616,8]
[325436127,1714888244165,-615.97,0.00035616,8]
[325436128,1714888244174,-565.0,0.00035616,8]
[325436129,1714888244184,-500.0,0.00035616,8]
[325436130,1714888244194,-504.73335963,0.00035616,8]
[325436131,1714888244203,-500.0,0.00035616,2]
[325436132,1714888244213,-500.0,0.00035616,8]
[325436133,1714888244222,-500.0,0.00035616,8]
[325436134,1714888244232,-1524.9,0.00035616,8]
[325436135,1714888244243,-576.98,0.00035616,8]
[325436136,1714888244253,-608.48566636,0.00035616,8]
[325436137,1714888244263,-500.0,0.00035616,8]
[325436138,1714888244273,-1774.91,0.00035616,8]
[325436139,1714888244284,-500.0,0.00035616,8]
[325436140,1714888244294,-500.0,0.00035616,8]
[325436141,1714888244305,-660.68,0.00035616,8]
[325436142,1714888244317,-500.0,0.00035616,8]
[325436143,1714888244329,-1571.69,0.00035616,8]
[325436144,1714888244340,-500.0,0.00035616,8]
[325436145,1714888244350,-500.0,0.00035616,8]
[325436146,1714888244359,-1556.76,0.00035616,8]
[325436147,1714888244368,-1224.92,0.00035616,8]
[325436148,1714888244379,-500.0,0.00035616,8]
[325436149,1714888244389,-672.04,0.00035616,8]
[325436150,1714888244400,-1598.18,0.00035616,8]
[325436151,1714888244409,-500.0,0.00035616,8]
[325436152,1714888244420,-761.65,0.00035616,8]
[325436153,1714888244429,-1624.04,0.00035616,8]
[325436154,1714888244438,-1435.92,0.00035616,8]
[325436155,1714888244448,-500.0,0.00035616,8]
[325436156,1714888244459,-45.68733763,0.00035616,8]
[325436157,1714888245381,-454.31266237,0.00035616,8]
[325436158,1714888245390,-625.95,0.00035616,8]
[325436159,1714888245399,-133.9427023,0.00035616,8]
[325436160,1714888245498,-1744.7872977,0.00035616,8]
[325436161,1714888245507,-500.0,0.00035616,8]
[325436162,1714888245517,-778.89,0.00035616,8]
[325436163,1714888245526,-72.51182891,0.00035616,8]
[325436164,1714888245538,-427.48817109,0.00035616,8]
[325436165,1714888245547,-228.56182891,0.00035616,8]
[325436166,1714888245558,-271.43817109,0.00035616,8]
[325436167,1714888245567,-390.01813611,0.00035616,8]
[325436168,1714888245669,-961.51875694,0.00035616,8]
[325436192,1714888246382,-993.12736041,0.00027784,2]
[325436202,1714888246502,-444.24779552,0.00027784,2]
[325436203,1714888246512,-795.22854001,0.00027784,2]
[325436204,1714888247594,-2050.88041204,0.00027784,2]
[325436205,1714888247606,-3030.99915328,0.00027784,2]
[325436206,1714888247624,-1219.66208775,0.00027784,2]
[325436207,1714888247716,-549.5572481,0.00027784,2]
[325436208,1714888247728,-916.29740289,0.00027784,2]
[325436209,1714888247738,-291.942,0.00028792,2]
[325436210,1714888247747,-4820.36529871,0.00035603,2]
[325436211,1714888270964,119249.57994684,0.00013,2]
[325436212,1714888422492,70500.42005316,0.00013,2]
[325436213,1714888422518,5645.2,0.00013,2]
[325436214,1714888422544,50000.0,0.00013,2]
[325436215,1714888428681,1657.78825103,0.0003,120]
[325436216,1714888573424,-2218.26332743,0.0001293,2]
[325436217,1714888575344,539.97375662,0.00012929,2]
[325436218,1714888576471,364.24784319,0.00012929,2]
[325436219,1714888582171,4419.3719452,0.0001293,2]
[325436220,1714888596586,408.98464469,0.0001293,2]
[325436221,1714888619883,20193.97145337,0.0001293,2]
[325436222,1714888624379,423.1768076,0.00011637,2]
[325436223,1714888635163,547.52629801,0.0001293,2]
[325436224,1714888635507,19540.5862734,0.0001293,2]
[325436225,1714888640647,423.1768076,0.00011637,2]
[325436226,1714888640693,142920.72084289,0.0001293,2]
[325436227,1714888648529,300.0,0.00010344,2]
[325436228,1714888660373,398.57724372,0.00011637,2]
[325436229,1714888802781,150.0,0.00011637,2]
[325436230,1714888803283,150.0,0.00011637,2]
[325436231,1714888803346,150.0,0.00011637,2]
[325436232,1714888803388,150.0,0.00011637,2]
[325436233,1714888803771,150.0,0.00011637,2]
[325436234,1714888803964,150.0,0.00011637,2]
[325436235,1714888804152,150.0,0.00011637,2]
[325436236,1714888804383,150.0,0.00011637,2]
[325436237,1714888804541,150.0,0.00011637,2]
[325436238,1714888804711,150.0,0.00011637,2]
[325436239,1714888804913,150.0,0.00011637,2]
[325436240,1714888805082,150.0,0.00011637,2]
[325436241,1714888805272,150.0,0.00011637,2]
[325436242,1714889259776,181.43,0.00029694,120]
[325436259,1714889432187,-267.83236721,0.00012322,2]
[325436260,1714889432199,-459.81759252,0.00012323,2]
[325436261,1714889432212,-966.43463374,0.00012323,2]
[325436262,1714889432241,-1649.62196333,0.00012323,2]
[325436263,1714889432253,-1062.09792359,0.00012324,2]
[325436264,1714889432264,-707.48452441,0.00012324,2]
[325436265,1714889432275,-533.6451375,0.0001252,2]
[325436266,1714889432287,-1772.09394672,0.00012859,2]
[325436267,1714889432298,-170.82464975,0.000129,2]
[325436268,1714889432309,-159.72,0.0001292,2]
[325436269,1714889432321,-441.68283259,0.00012929,2]
[325436270,1714889432333,-47285.08413033,0.0001293,2]
[325436271,1714889432348,-13574.65971129,0.0001293,2]
[325436272,1714889432363,-1803.49,0.0001293,2]
[325436273,1714889432376,-800.0,0.0001293,2]
[325436277,1714889432530,-368.45856982,0.0001293,2]
[325436302,1714889438154,-707.48452441,0.00012321,2]
[325436303,1714889438164,-314059.4761749,0.0001293,2]
[325436304,1714889438174,-547.18875783,0.0001293,2]
[325436305,1714889438183,-348.86278067,0.00013,2]
[325436306,1714889438192,-188.62918423,0.00013,2]
[325436307,1714889438202,-210.49,0.00013151,2]
[325436308,1714889438212,-653.79,0.00013151,2]
[325436309,1714889438221,-544.83,0.00013151,2]
[325436310,1714889438231,-454.02,0.00013151,2]
[325436311,1714889438240,-378.35,0.00013151,2]
[325436312,1714889438250,-315.3,0.00013151,2]
[325436313,1714889438260,-262.75,0.00013151,2]
[325436314,1714889438269,-218.95,0.00013151,2]
[325436315,1714889438279,-182.46,0.00013151,2]
[325436316,1714889438288,-152.05,0.00013151,2]
[325436317,1714889438298,-760.29,0.00013151,2]
[325436318,1714889438307,-499.99,0.00017159,2]
[325436319,1714889438319,-226.6401,0.00017159,2]
[325436320,1714889438331,-167.00144416,0.0001788,2]
[325436321,1714889438340,-542.0,0.000205,2]
[325436322,1714889438350,-155.0,0.000209,2]
[325436323,1714889438359,-167.00144416,0.00021123,2]
[325436324,1714889438368,-151.39,0.00021644,2]
[325436325,1714889438378,-171.26,0.00024207,2]
[325436326,1714889438387,-461.85,0.00026308,2]
[325436327,1714889438398,-273.08282498,0.00027,2]
[325436328,1714889438409,-206.19206316,0.00027783,2]
[325436329,1714889438421,-1815.03021535,0.00027923,2]
[325436330,1714889438430,-150.5,0.0002897,15]
[325436331,1714889438440,-150.5,0.0002897,15]
[325436332,1714889438450,-150.5,0.0002898,15]
[325436333,1714889438459,-150.5,0.0002898,15]
[325436334,1714889438469,-150.5,0.0002899,15]
[325436335,1714889438478,-150.5,0.0002899,15]
[325436336,1714889438487,-164.02,0.00029187,15]
[325436337,1714889438497,-167.00144416,0.00029415,2]
[325436338,1714889438507,-461.85,0.00029597,2]
[325436339,1714889438516,-161.73,0.00029742,2]
[325436340,1714889438526,-23880.0,0.0002981,2]
[325436341,1714889438536,-2000.0,0.00029942,2]
[325436342,1714889438546,-1480.02658369,0.00029998,2]
[325436343,1714889438556,-4413.23799296,0.00029998,2]
[325436344,1714889438567,-410.55744323,0.00029998,2]
[325436345,1714889438576,-573.30653953,0.00029999,7]
[325436346,1714889438586,-3092.34257109,0.00029999,2]
[325436347,1714889438596,-9854.89230752,0.0003,4]
[325436348,1714889438607,-155.0,0.0003,4]
[325436349,1714889438617,-363.87403818,0.0003,2]
[325436350,1714889438627,-945.72052517,0.0003,4]
[325436351,1714889438637,-368.62682097,0.0003,4]
[325436352,1714889438647,-154.45,0.00030032,2]
[325436353,1714889438656,-250.0,0.00030291,2]
[325436354,1714889438665,-250.0,0.00030301,2]
[325436355,1714889438675,-585.69,0.00030301,2]
[325436356,1714889438685,-159.86,0.00030476,120]
[325436357,1714889438695,-478.87376594,0.00030745,120]
[325436358,1714889438704,-168.64,0.00030822,120]
[325436359,1714889438714,-179.6678895,0.00030959,7]
[325436360,1714889438724,-155.99402394,0.00032287,7]
[325436361,1714889438733,-158.32075683,0.00032489,7]
[325436362,1714889438742,-158.32075683,0.0003253,7]
[325436363,1714889438752,-158.32075683,0.00032748,7]
[325436364,1714889438761,-811.08,0.00032876,7]
[325436365,1714889438770,-461.85,0.00032885,2]
[325436366,1714889438780,-158.32075683,0.00033006,7]
[325436367,1714889438789,-158.32075683,0.00033094,7]
[325436368,1714889438799,-811.08,0.0003315,8]
[325436369,1714889438809,-155.35244179,0.00033327,7]
[325436370,1714889438819,-811.08,0.00033424,9]
[325436371,1714889438829,-160.1002055,0.00033428,7]
[325436372,1714889438840,-154.17335256,0.00033464,7]
[325436373,1714889438849,-150.0,0.00033629,2]
[325436374,1714889438858,-150.0,0.00033685,2]
[325436375,1714889438867,-811.08,0.00033698,10]
[325436376,1714889438877,-155.96176998,0.00033726,7]
[325436377,1714889438887,-179.6678895,0.00033804,7]
[325436378,1714889438896,-150.0,0.00033867,2]
[325436379,1714889438906,-811.08,0.00033972,11]
[325436380,1714889438915,-154.17335256,0.00033999,7]
[325436381,1714889438924,-150.0,0.00034112,2]
[325436382,1714889438934,-811.08,0.00034246,12]
[325436383,1714889438943,-159.86,0.00034286,120]
[325436384,1714889438953,-150.0,0.00034289,2]
[325436385,1714889438962,-158.43315543,0.00034323,7]
[325436386,1714889438971,-179.6678895,0.00034389,7]
[325436387,1714889438981,-150.0,0.0003439,2]
[325436388,1714889438990,-150.0,0.0003446,2]
[325436389,1714889438999,-811.08,0.0003452,13]
[325436390,1714889439009,-150.0,0.00034635,2]
[325436391,1714889439018,-150.0,0.00034694,2]
[325436392,1714889439027,-150.0,0.00034752,2]
[325436393,1714889439037,-150.0,0.00034773,2]
[325436394,1714889439047,-241.4,0.00034777,10]
[325436395,1714889439056,-160.1002055,0.00034787,7]
[325436396,1714889439066,-154.17335256,0.0003479,7]
[325436397,1714889439075,-811.08,0.00034794,14]
[325436398,1714889439085,-155.35244179,0.00034845,7]
[325436399,1714889439094,-150.0,0.00034873,2]
[325436400,1714889439104,-150.0,0.00034912,2]
[325436401,1714889439114,-150.0,0.0003492,2]
[325436402,1714889439124,-1008.0,0.00035,7]
[325436403,1714889439133,-1000.0,0.00035,8]
[325436404,1714889439143,-1000.0,0.00035,8]
[325436405,1714889439153,-6997.94334994,0.00035,12]
[325436406,1714889439163,-158.32075683,0.00035002,7]
[325436407,1714889439173,-811.08,0.00035068,15]
[325436408,1714889439183,-150.0,0.00035137,2]
[325436409,1714889439194,-599.99735,0.0003526,2]
[325436410,1714889439204,-155.96176998,0.00035289,7]
[325436411,1714889439214,-200.0,0.0003533,10]
[325436412,1714889439226,-200.0,0.00035331,10]
[325436413,1714889439236,-500.0,0.00035331,10]
[325436414,1714889439246,-200.0,0.00035331,10]
[325436415,1714889439255,-811.08,0.00035342,16]
[325436416,1714889439265,-157.32101486,0.0003546,2]
[325436417,1714889439274,-1151.58629514,0.0003546,2]
[325436418,1714889439284,-150.0,0.00035464,2]
[325436419,1714889439294,-3378.10546993,0.00035516,2]
[325436420,1714889439309,-20435.34543007,0.00035516,2]
[325436421,1714889439322,-174.18599227,0.00035516,8]
[325436422,1714889439333,-150.0,0.00035534,2]
[325436423,1714889439343,-159.72,0.00035576,2]
[325436424,1714889439352,-3149.0,0.00035586,15]
[325436425,1714889439363,-150.5,0.00035586,15]
[325436426,1714889439372,-6415.0,0.00035586,15]
[325436427,1714889439382,-3149.0,0.00035596,15]
[325436428,1714889439392,-150.5,0.00035596,15]
[325436429,1714889439403,-6415.0,0.00035596,15]
[325436430,1714889439413,-160.79,0.00035596,15]
[325436431,1714889439423,-160.0,0.000356,9]
[325436432,1714889439432,-8594.76545824,0.00035603,2]
[325436433,1714889439444,-377.77711273,0.00035603,2]
[325436434,1714889439456,-8314.60468412,0.00035603,2]
[325436435,1714889439465,-3305.6708328,0.00035603,2]
[325436436,1714889439475,-6294.87610793,0.00035603,2]
[325436437,1714889439503,-1729.32119067,0.00035603,2]
[325436438,1714889439512,-2394.7779561,0.00035603,2]
[325436439,1714889439521,-955.92556394,0.00035603,2]
[325436440,1714889439533,-539.00383144,0.00035603,2]
[325436441,1714889439544,-364.0,0.00035603,2]
[325436442,1714889439560,-1031.17736832,0.00035603,2]
[325436443,1714889439569,-193.41308259,0.00035606,2]
[325436444,1714889439578,-159.72,0.00035606,2]
[325436445,1714889439588,-839.55262585,0.00035606,15]
[325436446,1714889439616,-2309.44737415,0.00035606,15]
[325436447,1714889439625,-150.5,0.00035606,15]
[325436448,1714889439635,-6415.0,0.00035606,15]
[325436449,1714889439645,-150.5,0.00035606,15]
[325436450,1714889439655,-155.96691017,0.00035614,4]
[325436451,1714889439665,-221.8269125,0.00035614,4]
[325436452,1714889439675,-203.97616968,0.00035614,4]
[325436453,1714889439685,-155.68315886,0.00035614,4]
[325436454,1714889439695,-577.36339637,0.00035614,4]
[325436455,1714889439704,-307.06690353,0.00035614,2]
[325436456,1714889439714,-168.62158287,0.00035614,4]
[325436457,1714889439723,-201.16744693,0.00035614,4]
[325436458,1714889439732,-767.8903537,0.00035614,4]
[325436459,1714889439742,-408.43119432,0.00035614,4]
[325436460,1714889439751,-155.21536814,0.00035614,4]
[325436461,1714889439760,-2259.13022236,0.00035614,2]
[325436462,1714889439770,-345.60713201,0.00035614,4]
[325436463,1714889439781,-898.47487725,0.00035614,4]
[325436464,1714889439792,-155.41258833,0.00035614,4]
[325436465,1714889439802,-4185.21772039,0.00035614,4]
[325436466,1714889439811,-306.71178674,0.00035614,4]
[325436467,1714889439822,-2250.89391064,0.00035614,4]
[325436468,1714889439833,-270.04532473,0.00035614,4]
[325436469,1714889439845,-238.37954066,0.00035614,4]
[325436470,1714889439855,-200.62176208,0.00035614,4]
[325436471,1714889439867,-1137.65677137,0.00035614,4]
[325436472,1714889439876,-378.51268957,0.00035614,4]
[325436473,1714889439886,-156.34895342,0.00035614,4]
[325436474,1714889439895,-156.46812312,0.00035614,4]
[325436475,1714889439904,-2189.03026665,0.00035614,4]
[325436476,1714889439914,-207.65690115,0.00035614,4]
[325436477,1714889439923,-155.21281844,0.00035614,4]
[325436478,1714889439932,-230.51129089,0.00035614,4]
[325436479,1714889439945,-1556.82837603,0.00035614,4]
[325436480,1714889439954,-417.45617429,0.00035614,4]
[325436481,1714889439964,-414.28119384,0.00035614,15]
[325436482,1714889439973,-155.60230231,0.00035614,2]
[325436483,1714889439983,-155.29262186,0.00035614,4]
[325436484,1714889439992,-155.40853582,0.00035614,2]
[325436485,1714889440002,-239.76163576,0.00035614,4]
[325436486,1714889440012,-194.76294358,0.00035614,4]
[325436487,1714889440021,-155.0,0.00035614,2]
[325436488,1714889440031,-156.62359949,0.00035614,4]
[325436489,1714889440040,-155.4725688,0.00035614,4]
[325436490,1714889440050,-1568.24848139,0.00035615,2]
[325436491,1714889440060,-888.0,0.00035615,3]
[325436492,1714889440069,-302.0,0.00035615,5]
[325436493,1714889440079,-500.0,0.00035616,8]
[325436494,1714889440088,-500.0,0.00035616,8]
[325436495,1714889440098,-500.0,0.00035616,8]
[325436496,1714889440107,-762.17,0.00035616,8]
[325436497,1714889440116,-819.49,0.00035616,8]
[325436498,1714889440126,-500.0,0.00035616,8]
[325436499,1714889440135,-500.0,0.00035616,8]
[325436500,1714889440144,-541.46,0.00035616,8]
[325436501,1714889440154,-500.0,0.00035616,8]
[325436502,1714889440163,-500.0,0.00035616,8]
[325436503,1714889440173,-500.0,0.00035616,8]
[325436504,1714889440183,-500.0,0.00035616,8]
[325436505,1714889440192,-500.0,0.00035616,8]
[325436506,1714889440202,-552.94,0.00035616,8]
[325436507,1714889440211,-1491.89,0.00035616,8]
[325436508,1714889440221,-500.0,0.00035616,8]
[325436509,1714889440230,-1181.1,0.00035616,8]
[325436510,1714889440240,-1245.4,0.00035616,8]
[325436511,1714889440249,-746.44,0.00035616,8]
[325436512,1714889440259,-642.58,0.00035616,8]
[325436513,1714889440268,-500.0,0.00035616,8]
[325436514,1714889440346,-689.43,0.00035616,8]
[325436515,1714889440357,-800.34,0.00035616,8]
[325436516,1714889440367,-500.0,0.00035616,8]
[325436517,1714889440376,-521.65,0.00035616,8]
[325436518,1714889440385,-500.0,0.00035616,8]
[325436519,1714889440396,-604.63,0.00035616,8]
[325436520,1714889440407,-500.0,0.00035616,8]
[325436521,1714889440417,-1011.91,0.00035616,8]
[325436522,1714889440426,-652.72,0.00035616,8]
[325436523,1714889440435,-500.0,0.00035616,8]
[325436524,1714889440446,-500.0,0.00035616,8]
[325436525,1714889440456,-500.0,0.00035616,8]
[325436526,1714889440465,-500.0,0.00035616,8]
[325436527,1714889440475,-500.0,0.00035616,8]
[325436528,1714889440485,-1125.31,0.00035616,8]
[325436529,1714889440495,-500.0,0.00035616,8]
[325436530,1714889440505,-811.19,0.00035616,8]
[325436531,1714889440515,-500.0,0.00035616,8]
[325436532,1714889440524,-500.0,0.00035616,8]
[325436533,1714889440534,-729.92,0.00035616,8]
[325436534,1714889440545,-1106.69,0.00035616,8]
[325436535,1714889440555,-828.83,0.00035616,8]
[325436536,1714889440564,-520.56,0.00035616,8]
[325436537,1714889440574,-500.0,0.00035616,8]
[325436538,1714889440583,-500.0,0.00035616,8]
[325436539,1714889440592,-500.0,0.00035616,8]
[325436540,1714889440601,-1013.28,0.00035616,8]
[325436541,1714889440611,-1339.32,0.00035616,8]
[325436542,1714889440621,-801.94,0.00035616,8]
[325436543,1714889440631,-1246.83,0.00035616,8]
[325436544,1714889440639,-500.0,0.00035616,8]
[325436545,1714889440649,-500.0,0.00035616,8]
[325436546,1714889440658,-960.57,0.00035616,8]
[325436547,1714889440668,-514.26,0.00035616,8]
[325436548,1714889440677,-1208.52,0.00035616,8]
[325436549,1714889440687,-500.0,0.00035616,8]
[325436550,1714889440696,-500.0,0.00035616,8]
[325436551,1714889440705,-500.0,0.00035616,8]
[325436552,1714889440714,-500.0,0.00035616,8]
[325436553,1714889440723,-500.0,0.00035616,8]
[325436554,1714889440733,-950.47,0.00035616,8]
[325436555,1714889440742,-500.0,0.00035616,8]
[325436556,1714889440751,-500.0,0.00035616,8]
[325436557,1714889440761,-949.07,0.00035616,8]
[325436558,1714889440770,-660.0,0.00035616,8]
[325436559,1714889440779,-506.99153304,0.00035616,8]
[325436560,1714889440789,-500.0,0.00035616,8]
[325436561,1714889440798,-728.44,0.00035616,8]
[325436562,1714889440808,-1169.11,0.00035616,8]
[325436563,1714889440818,-500.0,0.00035616,8]
[325436564,1714889440827,-500.0,0.00035616,8]
[325436565,1714889440837,-1158.3,0.00035616,8]
[325436566,1714889440846,-525.39,0.00035616,8]
[325436567,1714889440856,-1215.93,0.00035616,8]
[325436568,1714889440865,-1364.65,0.00035616,8]
[325436569,1714889440876,-1531.05,0.00035616,8]
[325436570,1714889440886,-500.0,0.00035616,8]
[325436571,1714889440896,-720.58,0.00035616,8]
[325436572,1714889440907,-601.38,0.00035616,8]
[325436573,1714889440918,-500.0,0.00035616,8]
[325436574,1714889440929,-500.0,0.00035616,8]
[325436575,1714889440938,-763.87,0.00035616,8]
[325436576,1714889440947,-1312.28,0.00035616,8]
[325436577,1714889440956,-522.87,0.00035616,8]
[325436578,1714889440968,-843.98,0.00035616,8]
[325436579,1714889440979,-500.0,0.00035616,8]
[325436580,1714889440989,-509.87,0.00035616,8]
[325436581,1714889440998,-688.92,0.00035616,8]
[325436582,1714889441009,-1436.27,0.00035616,8]
[325436583,1714889441019,-500.0,0.00035616,8]
[325436584,1714889441028,-500.0,0.00035616,8]
[325436585,1714889441037,-500.0,0.00035616,8]
[325436586,1714889441047,-500.0,0.00035616,8]
[325436587,1714889441058,-500.0,0.00035616,8]
[325436588,1714889441068,-618.32,0.00035616,8]
[325436589,1714889441077,-1192.08,0.00035616,8]
[325436590,1714889441087,-814.83,0.00035616,8]
[325436591,1714889441096,-500.0,0.00035616,8]
[325436592,1714889441105,-500.0,0.00035616,8]
[325436593,1714889441115,-500.0,0.00035616,8]
[325436594,1714889441124,-903.05,0.00035616,8]
[325436595,1714889441133,-1320.12,0.00035616,8]
[325436596,1714889441142,-500.0,0.00035616,8]
[325436597,1714889441151,-500.0,0.00035616,8]
[325436598,1714889441160,-1193.23,0.00035616,8]
[325436599,1714889441169,-1124.37,0.00035616,8]
[325436600,1714889441179,-500.0,0.00035616,8]
[325436601,1714889441188,-500.0,0.00035616,8]
[325436602,1714889441197,-563.74,0.00035616,8]
[325436603,1714889441207,-500.0,0.00035616,8]
[325436604,1714889441216,-500.0,0.00035616,8]
[325436605,1714889441225,-500.0,0.00035616,8]
[325436606,1714889441234,-500.0,0.00035616,8]
[325436607,1714889441243,-1309.61,0.00035616,8]
[325436608,1714889441252,-500.0,0.00035616,8]
[325436609,1714889441261,-500.0,0.00035616,8]
[325436610,1714889441271,-500.0,0.00035616,8]
[325436611,1714889441279,-500.0,0.00035616,8]
[325436612,1714889441289,-517.95,0.00035616,8]
[325436613,1714889441298,-500.0,0.00035616,8]
[325436614,1714889441307,-611.00976013,0.00035616,8]
[325436615,1714889441317,-500.0,0.00035616,8]
[325436616,1714889441331,-500.0,0.00035616,8]
[325436617,1714889441340,-561.07,0.00035616,8]
[325436618,1714889441349,-500.0,0.00035616,8]
[325436619,1714889441358,-2027.73,0.00035616,8]
[325436620,1714889441369,-500.0,0.00035616,8]